Workbook

Sheet AllParameters (hidden)
A1: Customer_Name | B1: Product_Name | C1: Axis_Major_mm | D1: Mantle_Axis_Major_mm | E1: Axis_Minor_mm | F1: Mantle_Axis_Minor | G1: Height_mm | H1: Mantle_Height_mm | I1: Substrate_Weight_Min_g | J1: Substrate_Weight_g | K1: Substrate_Weight_Max_g | L1: TWCL_Line_Min | M1: TWCL_Line_Nom | N1: TWCL_Line_Max | O1: Pieces_per_Box | P1: Pieces_per_Pallet | Q1: Weight per pallet (g)
A2: AUDI (AD) | B2: AD3130 | C2: 101.6 | E2: 101.6 | G2: 63.5 | I2: 165.0 | J2: 180.0 | K2: 195.0 | L2: 76.0534 | M2: 83.2380 | N2: 93.0240 | O2: 45 | P2: 720 | Q2: =P2*(M2+J2) -> 189531.36
A3: AUDI (AD) | B3: AD3306 | C3: 177.8 | E3: 101.6 | G3: 125.0 | I3: 487.0 | J3: 542.0 | K3: 596.0 | L3: 238.7564 | M3: 254.2700 | N3: 269.5638 | O3: 9 | P3: 162 | Q3: =P3*(M3+J3) -> 128995.74
A4: AUDI (AD) | B4: AD3377 | C4: 105.7 | E4: 105.7 | G4: 89.9 | I4: 246.0 | J4: 274.0 | K4: 301.0 | L4: 116.1836 | M4: 126.7378 | N4: 141.2524 | O4: 18 | P4: 432 | Q4: 173118.7296
A5: AUDI (AD) | B5: AD4384 | C5: 177.8 | E5: 101.6 | G5: 125.0 | I5: 488.0 | J5: 542.0 | K5: 596.0 | L5: 228.8430 | M5: 254.2700 | N5: 279.6970 | O5: 9 | P5: 189 | Q5: 150495.03
A6: AUDI (AD) | B6: AD4652 | C6: 177.8 | E6: 101.6 | G6: 125.0 | I6: 488.0 | J6: 542.0 | K6: 596.0 | L6: 234.3554 | M6: 260.7616 | N6: 287.1678 | O6: 9 | P6: 189 | Q6: 151721.9424
A7: AUDI (AD) | B7: AD4852 | C7: 177.8 | E7: 101.6 | G7: 125.0 | Q7: 0
A8: AUDI (AD) | B8: AD4854 | C8: 177.8 | E8: 101.6 | G8: 125.0 | I8: 488.0 | J8: 542.0 | K8: 596.0 | L8: 257.4607 | M8: 286.0674 | N8: 314.6742 | O8: 9 | P8: 189 | Q8: 156504.7386
A9: AUDI (AD) | B9: AD5634 | C9: 177.8 | E9: 101.6 | G9: 125.0 | I9: 525.0 | J9: 575.0 | K9: 625.0 | L9: 236.5560 | M9: 262.9622 | N9: 289.3684 | O9: 9 | P9: 189 | Q9: 158374.8558
A10: AUDI (AD) | B10: AD5678 | C10: 177.8 | E10: 101.6 | G10: 125.0 | I10: 525.0 | J10: 575.0 | K10: 625.0 | L10: 257.4610 | M10: 286.0680 | N10: 314.6740 | O10: 9 | P10: 189 | Q10: 162741.852
A11: AUDI (AD) | B11: AD5746 | C11: 177.8 | E11: 101.6 | G11: 125.0 | I11: 525.0 | J11: 575.0 | K11: 625.0 | L11: 228.8540 | M11: 254.2700 | N11: 279.4660 | O11: 9 | P11: 189 | Q11: 156732.03
A12: AVTOGAZ (AG) | B12: AG5927 | C12: 118.4 | E12: 118.4 | G12: 152.4 | I12: 640.0 | J12: 715.0 | K12: 790.0 | L12: 329.6248 | M12: 608.9568 | O12: 11 | P12: 220 | Q12: 291270.496
A13: AVTOVAZ (AV) | B13: AV3745 | C13: 101.6 | E13: 101.6 | G13: 152.4 | I13: 470.0 | J13: 525.0 | K13: 580.0 | L13: 218.5092 | M13: 242.7880 | N13: 267.0668 | O13: 12 | P13: 240 | Q13: 184269.12
A14: AVTOVAZ (AV) | B14: AV4036 | C14: 147.0 | E14: 95.0 | G14: 118.4 | I14: 455.0 | J14: 548.0 | K14: 580.0 | L14: 230.1612 | M14: 255.7348 | N14: 281.3082 | O14: 10 | P14: 280 | Q14: 225045.744
A15: AVTOVAZ (AV) | B15: AV4049 | C15: 152.4 | E15: 101.6 | G15: 106.7 | I15: 495.0 | J15: 553.0 | K15: 610.0 | L15: 229.8604 | M15: 255.4006 | N15: 280.9406 | O15: 9 | P15: 252 | Q15: 203716.9512
A16: AVTOVAZ (AV) | B16: AV4794 | C16: 152.4 | E16: 101.6 | G16: 101.6 | I16: 483.0 | J16: 537.0 | K16: 590.0 | L16: 219.7712 | M16: 244.1904 | N16: 268.6094 | O16: 12 | P16: 288 | Q16: 224982.8352
A17: BMW (BM) | B17: BM5105 | C17: 220.0 | E17: 98.4 | G17: 101.6 | I17: 560.0 | J17: 660.0 | K17: 760.0 | L17: 253.8354 | M17: 282.1706 | N17: 310.5056 | O17: 12 | P17: 192 | Q17: 180896.7552
A18: BMW (BM) | B18: BM5106 | C18: 220.0 | E18: 98.4 | G18: 152.4 | I18: 840.0 | J18: 990.0 | K18: 1140.0 | L18: 380.7586 | M18: 423.2618 | N18: 465.7652 | O18: 6 | P18: 120 | Q18: 169591.416
A19: BMW (BM) | B19: BM5287 | C19: 110.0 | E19: 110.0 | G19: 106.0 | I19: 275.0 | J19: 305.0 | K19: 335.0 | L19: 132.1648 | M19: 146.9180 | N19: 161.6714 | O19: 24 | P19: 384 | Q19: 173536.512
A20: BMW (BM) | B20: BM5403 | C20: 114.0 | E20: 93.0 | G20: 118.4 | I20: 275.0 | J20: 305.0 | K20: 335.0 | L20: 130.9522 | M20: 145.5702 | N20: 160.1880 | O20: 12 | P20: 336 | Q20: 151391.5872
A21: BMW (BM) | B21: BM6007 | C21: 233.5 | E21: 94.6 | G21: 127.0 | I21: 635.0 | J21: 763.0 | K21: 890.0 | O21: 120 | P21: 120 | Q21: 91560
A22: BMW (BM) | B22: BM6008 | C22: 217.7 | E22: 85.2 | G22: 127.0 | I22: 550.0 | J22: 658.0 | K22: 765.0 | O22: 4 | P22: 96 | Q22: 63168
A23: BMW (BM) | B23: BM6018 | C23: 239.6 | E23: 101.5 | G23: 114.3 | I23: 685.0 | J23: 813.0 | K23: 940.0 | O23: 140 | P23: 140 | Q23: 113820
A24: CRYSLER (CR) | B24: CR4626 | C24: 165.6 | E24: 129.6 | G24: 76.2 | I24: 349.0 | J24: 401.0 | K24: 453.0 | L24: 256.6032 | M24: 285.0966 | N24: 313.6062 | O24: 20 | P24: 300 | Q24: 205828.98
A25: DAIMLER (DC) | B25: DC3084 | C25: 241.3 | E25: 241.3 | G25: 139.7 | L25: 787.5010 | M25: 877.1670 | N25: 962.9344 | O25: 2 | P25: 40 | Q25: 35086.68
A26: DAIMLER (DC) | B26: DC3105 | C26: 142.2 | E26: 142.2 | G26: 190.0 | I26: 2081.0 | J26: 2191.0 | K26: 2300.0 | L26: 33.2316 | M26: 36.9978 | N26: 40.6164 | O26: 140 | P26: 140 | Q26: 311919.692
A27: DAIMLER (DC) | B27: DC3207 | C27: 142.2 | E27: 142.2 | G27: 222.0 | L27: 49.8000 | M27: 55.4000 | N27: 60.9000 | O27: 112 | P27: 112 | Q27: 6204.8
A28: DAIMLER (DC) | B28: DC3316 | C28: 142.2 | E28: 142.2 | G28: 222.0 | I28: 2270.0 | J28: 2500.0 | K28: 2730.0 | L28: 49.8000 | M28: 55.4000 | N28: 60.9000 | O28: 112 | P28: 112 | Q28: 286204.8
A29: DAIMLER (DC) | B29: DC3317 | C29: 142.2 | E29: 142.2 | G29: 190.0 | I29: 1950.0 | J29: 2150.0 | K29: 2350.0 | L29: 33.2000 | M29: 36.9000 | N29: 40.6000 | O29: 140 | P29: 140 | Q29: 306166
A30: DEUTZ (DE) | B30: DE4083 | C30: 143.8 | E30: 143.8 | G30: 127.0 | I30: 523.0 | J30: 615.0 | K30: 707.0 | L30: 752.3052 | M30: 804.1138 | N30: 360.0454 | O30: 8 | P30: 120 | Q30: 170293.656
A31: DEUTZ (DE) | B31: DE4084 | C31: 215.9 | E31: 215.9 | G31: 101.6 | I31: 837.0 | J31: 930.0 | K31: 1023.0 | L31: 1356.3950 | M31: 1449.8012 | N31: 649.1628 | O31: 54 | P31: 54 | Q31: 128509.2648
A32: DEUTZ (DE) | B32: DE4085 | C32: 241.3 | E32: 241.3 | G32: 114.3 | I32: 1334.0 | J32: 1569.0 | K32: 1804.0 | L32: 2075.2612 | M32: 2213.5740 | N32: 912.2542 | O32: 54 | P32: 54 | Q32: 204258.996
A33: DEUTZ (DE) | B33: DE4485 | C33: 143.8 | E33: 143.8 | G33: 177.8 | I33: 732.0 | J33: 861.0 | K33: 990.0 | L33: 414.1876 | M33: 460.0126 | N33: 505.8376 | O33: 8 | P33: 120 | Q33: 158521.512
A34: DEUTZ (DE) | B34: DE4486 | C34: 143.8 | E34: 143.8 | G34: 177.8 | I34: 732.0 | J34: 861.0 | K34: 990.0 | L34: 1053.2464 | M34: 1125.7566 | N34: 504.0750 | O34: 8 | P34: 120 | Q34: 238410.792
A35: DEUTZ (DE) | B35: DE4697 | C35: 143.8 | E35: 143.8 | G35: 127.0 | I35: 523.0 | J35: 615.0 | K35: 707.0 | L35: 295.8416 | M35: 328.5730 | N35: 361.3044 | O35: 8 | P35: 120 | Q35: 113228.76
A36: DAIMLER (DT) | B36: DT3643 | C36: 142.2 | E36: 142.2 | G36: 140.0 | I36: 1530.0 | J36: 1611.0 | K36: 1691.0 | L36: 29.9000 | M36: 33.3000 | N36: 36.6000 | O36: 168 | P36: 168 | Q36: 276242.4
A37: DAIMLER (DT) | B37: DT3807 | C37: 236.0 | D37: 239.0 | E37: 136.0 | F37: 139.0 | G37: 180.0 | H37: 216.0 | I37: 3904.0 | J37: 4338.0 | K37: 4772.0 | L37: 1999.4180 | M37: 2131.7514 | N37: 686.7288 | O37: 4 | P37: 96 | Q37: 621096.1344
A38: DAIMLER (DT) | B38: DT4005 | C38: 266.7 | E38: 266.7 | G38: 101.6 | I38: 1607.0 | J38: 1891.0 | K38: 2174.0 | L38: 819.1438 | M38: 909.1976 | N38: 999.2514 | O38: 48 | P38: 48 | Q38: 134409.4848
A39: DAIMLER (DT) | B39: DT4006 | C39: 266.7 | E39: 266.7 | G39: 116.8 | I39: 1848.0 | J39: 2174.0 | K39: 2500.0 | L39: 942.0126 | M39: 1045.5742 | N39: 1149.1359 | O39: 40 | P39: 40 | Q39: 128782.968
A40: DAIMLER (DT) | B40: DT4007 | C40: 266.7 | E40: 266.7 | G40: 134.6 | I40: 2504.0 | J40: 2692.0 | K40: 2880.0 | L40: 1084.4469 | M40: 1204.9154 | N40: 1325.3840 | O40: 40 | P40: 40 | Q40: 155876.616
A41: DAIMLER (DT) | B41: DT4011 | C41: 266.7 | E41: 266.7 | G41: 203.2 | I41: 3213.0 | J41: 3780.0 | K41: 4347.0 | L41: 1496.2774 | M41: 1662.5304 | N41: 1828.7834 | O41: 24 | P41: 24 | Q41: 130620.7296
A42: DAIMLER (DT) | B42: DT4013 | C42: 266.7 | E42: 266.7 | G42: 101.6 | I42: 1607.0 | J42: 1891.0 | K42: 2174.0 | L42: 1030.7696 | M42: 1145.0686 | N42: 1259.3676 | O42: 48 | P42: 48 | Q42: 145731.2928
A43: DAIMLER (DT) | B43: DT4014 | C43: 266.7 | E43: 266.7 | G43: 152.4 | I43: 2410.0 | J43: 2835.0 | K43: 3260.0 | L43: 1404.8384 | M43: 1560.7006 | N43: 1716.5628 | O43: 32 | P43: 32 | Q43: 140662.4192
A44: DAIMLER (DT) | B44: DT4015 | C44: 266.7 | E44: 266.7 | G44: 203.2 | I44: 3213.0 | J44: 3780.0 | K44: 4347.0 | L44: 1778.9072 | M44: 1976.3326 | N44: 2173.7580 | O44: 24 | P44: 24 | Q44: 138151.9824
A45: DAIMLER (DT) | B45: DT4105 | C45: 264.2 | E45: 264.2 | G45: 165.0 | J45: 5880.0 | L45: 229.4000 | M45: 254.9000 | N45: 280.4000 | O45: 40 | P45: 40 | Q45: 245396
A46: DAIMLER (DT) | B46: DT4581 | C46: 266.7 | E46: 266.7 | G46: 114.3 | I46: 1807.0 | J46: 2126.0 | K46: 2445.0 | L46: 1124.2868 | M46: 1248.9766 | N46: 1373.6664 | O46: 48 | P46: 48 | Q46: 161998.8768
A47: DAIMLER (DT) | B47: DT4582 | C47: 266.7 | E47: 266.7 | G47: 228.6 | I47: 3615.0 | J47: 4253.0 | K47: 4891.0 | L47: 1965.9416 | M47: 2184.1486 | N47: 2402.3556 | O47: 24 | P47: 24 | Q47: 154491.5664
A48: DAIMLER (DT) | B48: DT4585 | C48: 266.7 | E48: 266.7 | G48: 152.4 | I48: 2410.0 | J48: 2835.0 | K48: 3260.0 | L48: 1228.7139 | M48: 1363.7946 | N48: 1499.8753 | O48: 40 | P48: 40 | Q48: 167951.784
A49: DAIMLER (DT) | B49: DT4586 | C49: 266.7 | E49: 266.7 | G49: 228.6 | I49: 3615.0 | J49: 4253.0 | K49: 4891.0 | L49: 1683.3118 | M49: 1870.3464 | N49: 2057.3810 | O49: 24 | P49: 24 | Q49: 146960.3136
A50: DAIMLER (DT) | B50: DT4688 | C50: 266.7 | E50: 266.7 | G50: 152.4 | I50: 2410.0 | J50: 2835.0 | K50: 3260.0 | L50: 1122.2086 | M50: 1246.8984 | N50: 1371.5882 | O50: 40 | P50: 40 | Q50: 163275.936
A51: DAIMLER (DT) | B51: DT5041 | C51: 266.7 | E51: 266.7 | G51: 203.2 | I51: 3188.0 | J51: 3751.0 | K51: 4313.0 | L51: 1496.2774 | M51: 1662.5304 | N51: 1828.7834 | O51: 2 | P51: 32 | Q51: 173232.9728
A52: DAIMLER (DT) | B52: DT5042 | C52: 266.7 | E52: 266.7 | G52: 152.4 | I52: 2389.0 | J52: 2811.0 | K52: 3232.0 | L52: 1122.2086 | M52: 1246.8984 | N52: 1371.5882 | O52: 2 | P52: 40 | Q52: 162315.936
A53: DAIMLER (DT) | B53: DT5413 | C53: 142.2 | E53: 142.2 | G53: 190.0 | J53: 2100.0 | L53: 33.2357 | M53: 36.9285 | N53: 40.6214 | O53: 140 | P53: 140 | Q53: 299169.99
A54: DAIMLER (DT) | B54: DT5547 | C54: 266.7 | E54: 266.7 | G54: 101.6 | I54: 1590.0 | J54: 1870.0 | K54: 2151.0 | L54: 748.1000 | M54: 831.2640 | N54: 914.3900 | O54: 56 | P54: 56 | Q54: 151270.784
A55: DAIMLER (DT) | B55: DT5548 | C55: 266.7 | E55: 266.7 | G55: 203.2 | I55: 3213.0 | J55: 3780.0 | K55: 4347.0 | L55: 1591.6995 | M55: 1768.5166 | N55: 1945.3337 | O55: 24 | P55: 24 | Q55: 133164.3984
A56: DAIMLER (DT) | B56: DT5551 | C56: 266.7 | E56: 266.7 | G56: 101.6 | I56: 1500.0 | J56: 1900.0 | K56: 2050.0 | L56: 940.3673 | M56: 1045.1413 | N56: 1149.5688 | O56: 48 | P56: 48 | Q56: 141366.7824
A57: DAIMLER (DT) | B57: DT5718 | C57: 266.7 | E57: 266.7 | G57: 101.6 | I57: 1607.0 | J57: 1891.0 | K57: 2174.0 | L57: 1030.7696 | M57: 1145.0686 | N57: 1259.3676 | O57: 48 | P57: 48 | Q57: 145731.2928
A58: DAIMLER (DT) | B58: DT5719 | C58: 266.7 | E58: 266.7 | G58: 152.4 | I58: 2410.0 | J58: 2835.0 | K58: 3260.0 | L58: 1404.8384 | M58: 1560.7006 | N58: 1716.5628 | O58: 40 | P58: 40 | Q58: 175828.024
A59: DAIMLER (DT) | B59: DT5757 | C59: 266.7 | E59: 266.7 | G59: 228.6 | I59: 3615.0 | J59: 4253.0 | K59: 4891.0 | L59: 1965.9416 | M59: 2184.1486 | N59: 2402.3556 | O59: 24 | P59: 24 | Q59: 154491.5664
A60: DAIMLER (DT) | B60: DT5783 | C60: 266.7 | E60: 266.7 | G60: 127.0 | J60: 2320.0 | O60: 8 | P60: 40 | Q60: 92800
A61: DAIMLER (DT) | B61: DT5784 | C61: 266.7 | E61: 266.7 | G61: 152.4 | I61: 2410.0 | J61: 2835.0 | K61: 3260.0 | L61: 1219.1873 | M61: 1354.6140 | N61: 1490.0407 | O61: 40 | P61: 40 | Q61: 167584.56
A62: DAIMLER (DT) | B62: DT5785 | C62: 266.7 | E62: 266.7 | G62: 228.6 | I62: 3162.0 | J62: 4253.0 | K62: 4891.0 | L62: 1777.9547 | M62: 1975.4666 | N62: 2172.9787 | O62: 24 | P62: 24 | Q62: 149483.1984
A63: DAIMLER (DT) | B63: DT5909 | C63: 266.7 | E63: 266.7 | G63: 152.4 | I63: 2390.0 | J63: 2810.0 | K63: 3230.0 | O63: 2 | P63: 40 | Q63: 112400
A64: DAIMLER (DT) | B64: DT5910 | C64: 267.0 | E64: 267.0 | G64: 102.0 | J64: 2000.0 | O64: 8 | P64: 48 | Q64: 96000
A65: EMINOX (ET) | B65: ET4263 | C65: 142.2 | E65: 142.2 | G65: 140.0 | I65: 1500.0 | J65: 1650.0 | K65: 1800.0 | O65: 196 | P65: 196 | Q65: 323400
A66: EMINOX (ET) | B66: ET4264 | C66: 142.2 | E66: 142.2 | G66: 140.0 | I66: 1500.0 | J66: 1650.0 | K66: 1800.0 | O66: 196 | P66: 196 | Q66: 323400
A67: EMINOX (ET) | B67: ET5117 | C67: 304.8 | E67: 304.8 | G67: 152.4 | I67: 4230.0 | J67: 5005.0 | K67: 5780.0 | L67: 1843.2731 | M67: 1990.5450 | N67: 2093.0245 | O67: 1 | P67: 30 | Q67: =P67*(M67+J67) -> 209866.35
A68: EMINOX (ET) | B68: ET5123 | C68: 304.8 | E68: 304.8 | G68: 152.4 | I68: 4230.0 | J68: 5005.0 | K68: 5780.0 | L68: 1531.0840 | M68: 1651.2090 | N68: 1726.5416 | O68: 1 | P68: 30 | Q68: 199686.27
A69: FORD (FD) | B69: FD4189 | C69: 118.4 | E69: 118.4 | G69: 91.0 | I69: 250.0 | J69: 300.0 | K69: 350.0 | L69: 177.2388 | M69: 196.9320 | N69: 216.6252 | O69: 22 | P69: 352 | Q69: 174920.064
A70: FORD (FD) | B70: FD4718 | C70: 143.8 | E70: 143.8 | G70: 96.0 | I70: 590.0 | J70: 663.0 | K70: 735.0 | O70: 12 | P70: 192 | Q70: 127296
A71: FIAT (FI) | B71: FI2163 | C71: 118.4 | E71: 118.4 | G71: 127.0 | I71: 433.0 | J71: 481.0 | K71: 529.0 | L71: 202.8186 | M71: 225.3538 | N71: 247.8892 | O71: 15 | P71: 270 | Q71: 190715.526
A72: FIAT (FI) | B72: FI3146 | C72: 118.4 | E72: 118.4 | G72: 114.3 | I72: 480.0 | J72: 535.0 | K72: 590.0 | L72: 173.5514 | M72: 192.8348 | N72: 212.1182 | O72: 11 | P72: 308 | Q72: 224173.1184
A73: FIAT (FI) | B73: FI3281 | C73: 143.8 | E73: 143.8 | G73: 152.4 | I73: 950.0 | J73: 1050.0 | K73: 1150.0 | L73: 283.9546 | M73: 315.0688 | N73: 345.8810 | O73: 6 | P73: 120 | Q73: 163808.256
A74: FIAT (FI) | B74: FI3342 | C74: 172.0 | E74: 172.0 | G74: 100.0 | I74: 891.0 | J74: 990.0 | K74: 1089.0 | L74: 408.6395 | M74: 444.0162 | N74: 479.1093 | O74: 8 | P74: 192 | Q74: 275331.1104
A75: FIAT (FI) | B75: FI3579 | C75: 165.6 | E75: 129.6 | G75: 76.2 | I75: 360.0 | J75: 401.0 | K75: 440.0 | L75: 256.5140 | M75: 285.0140 | N75: 313.5160 | O75: 20 | P75: 300 | Q75: 205804.2
A76: FIAT (FI) | B76: FI4025 | C76: 105.0 | D76: 108.0 | E76: 105.0 | F76: 108.0 | G76: 74.5 | H76: 84.5 | I76: 666.0 | J76: 740.0 | K76: 814.0 | L76: 233.6114 | M76: 251.3000 | N76: 268.9778 | O76: 20 | P76: 360 | Q76: 356868
A77: FIAT (FI) | B77: FI4026 | C77: 143.8 | E77: 143.8 | G77: 152.4 | I77: 940.0 | J77: 1055.0 | K77: 1170.0 | L77: 284.5140 | M77: 316.1268 | N77: 347.7394 | O77: 6 | P77: 120 | Q77: 164535.216
A78: FIAT (FI) | B78: FI4027 | C78: 143.8 | E78: 143.8 | G78: 108.0 | I78: 665.0 | J78: 745.0 | K78: 825.0 | L78: 690.0516 | M78: 736.2000 | N78: 782.3484 | O78: 6 | P78: 168 | Q78: 248841.6
A79: FIAT (FI) | B79: FI4028 | C79: 118.4 | E79: 118.4 | G79: 114.3 | I79: 705.0 | J79: 790.0 | K79: 875.0 | L79: 495.0940 | M79: 528.2126 | N79: 561.3310 | O79: 11 | P79: 308 | Q79: 406009.4808
A80: FIAT (FI) | B80: FI4240 | C80: 104.4 | D80: 107.4 | E80: 104.4 | F80: 107.4 | G80: 74.5 | H80: 84.5 | I80: 522.0 | J80: 580.0 | K80: 638.0 | L80: 79.7196 | M80: 88.5774 | N80: 97.4352 | O80: 18 | P80: 648 | Q80: 433238.1552
A81: FIAT (FI) | B81: FI4241 | C81: 172.0 | E81: 172.0 | G81: 100.0 | I81: 599.0 | J81: 689.0 | K81: 778.0 | L81: 385.3214 | M81: 428.1349 | N81: 470.9484 | O81: 8 | P81: 216 | Q81: 241301.1384
A82: FIAT (FI) | B82: FI4261 | C82: 118.4 | E82: 118.4 | G82: 114.3 | I82: 480.0 | J82: 535.0 | K82: 590.0 | L82: 458.6172 | M82: 490.2220 | N82: 521.8268 | O82: 11 | P82: 308 | Q82: 315768.376
A83: FIAT (FI) | B83: FI4262 | C83: 143.8 | E83: 143.8 | G83: 108.0 | I83: 665.0 | J83: 745.0 | K83: 825.0 | L83: 639.2514 | M83: 683.2626 | N83: 727.3064 | O83: 6 | P83: 168 | Q83: 239948.1168
A84: FIAT (FI) | B84: FI4280 | C84: 123.0 | E84: 123.0 | G84: 140.0 | I84: 635.0 | J84: 708.0 | K84: 780.0 | L84: 612.2330 | M84: 647.9000 | N84: 284.2392 | O84: 8 | P84: 192 | Q84: 260332.8
A85: FIAT (FI) | B85: FI4281 | C85: 143.8 | E85: 143.8 | G85: 76.0 | I85: 470.0 | J85: 525.0 | K85: 580.0 | L85: 177.9471 | M85: 197.7191 | N85: 217.4909 | O85: 12 | P85: 240 | Q85: 173452.584
A86: FIAT (FI) | B86: FI4457 | C86: 118.4 | E86: 118.4 | G86: 114.3 | I86: 480.0 | J86: 535.0 | K86: 590.0 | L86: 458.6710 | M86: 490.2616 | N86: 521.8524 | O86: 11 | P86: 308 | Q86: 315780.5728
A87: FIAT (FI) | B87: FI4458 | C87: 143.8 | E87: 143.8 | G87: 108.0 | I87: 665.0 | J87: 745.0 | K87: 825.0 | L87: 639.2764 | M87: 683.3064 | N87: 727.3362 | O87: 6 | P87: 168 | Q87: 239955.4752
A88: FIAT (FI) | B88: FI4612 | C88: 172.0 | E88: 172.0 | G88: 100.0 | I88: 600.0 | J88: 720.0 | K88: 840.0 | L88: 385.3214 | M88: 428.1349 | N88: 470.9484 | O88: 12 | P88: 192 | Q88: 220441.9008
A89: FIAT (FI) | B89: FI4630 | C89: 143.8 | E89: 143.8 | G89: 152.4 | I89: 940.0 | J89: 1055.0 | K89: 1170.0 | L89: 283.9552 | M89: 315.8246 | N89: 347.3920 | O89: 6 | P89: 120 | Q89: 164498.952
A90: FIAT (FI) | B90: FI4631 | C90: 105.0 | D90: 108.0 | E90: 105.0 | F90: 108.0 | G90: 74.5 | H90: 84.5 | I90: 666.0 | J90: 740.0 | K90: 814.0 | L90: 233.6232 | M90: 251.3048 | N90: 268.9864 | O90: 20 | P90: 360 | Q90: 356869.728
A91: FIAT (FI) | B91: FI4649 | C91: 143.8 | E91: 143.8 | G91: 108.0 | I91: 665.0 | J91: 745.0 | K91: 825.0 | L91: 639.0916 | M91: 683.0976 | N91: 727.1034 | O91: 6 | P91: 168 | Q91: 239920.3968
A92: FIAT (FI) | B92: FI5813 | C92: 190.5 | E92: 190.5 | G92: 175.3 | I92: 1328.0 | J92: 1538.0 | K92: 1747.0 | Q92: 0
A93: FIAT (FI) | B93: FI5827 | C93: 172.0 | E93: 172.0 | G93: 100.0 | I93: 636.0 | J93: 721.0 | K93: 805.0 | L93: 385.3214 | M93: 428.1349 | N93: 470.9484 | O93: 16 | P93: 192 | Q93: 220633.9008
A94: FIAT (FI) | B94: FI5959 | C94: 125.0 | E94: 125.0 | G94: 130.4 | I94: 414.0 | J94: 487.0 | K94: 560.0 | L94: 206.0478 | M94: 228.5080 | N94: 252.9212 | O94: 11 | P94: 231 | Q94: 165282.348
A95: FIAT (FI) | B95: FI6024 | C95: 123.0 | E95: 123.0 | G95: 140.0 | I95: 635.0 | J95: 708.0 | K95: 780.0 | O95: 8 | P95: 192 | Q95: 135936
A96: HONDA (HO) | B96: HO4322 | C96: 118.4 | E96: 118.4 | G96: 73.0 | I96: 197.0 | J96: 232.0 | K96: 267.0 | L96: 183.3096 | M96: 192.9754 | N96: 202.5926 | O96: 30 | P96: 450 | Q96: 191238.93
A97: HONDA (HO) | B97: HO4323 | C97: 118.4 | E97: 118.4 | G97: 73.0 | I97: 197.0 | J97: 232.0 | K97: 267.0 | L97: 130.9006 | M97: 137.7494 | N97: 144.6952 | O97: 30 | P97: 450 | Q97: 166387.23
A98: IVECO (IV) | B98: IV2929 | C98: 105.7 | E98: 105.7 | G98: 63.5 | I98: 218.0 | J98: 243.0 | K98: 267.0 | O98: 36 | P98: 648 | Q98: 157464
A99: IVECO (IV) | B99: IV3261 | C99: 172.0 | E99: 172.0 | G99: 100.0 | I99: 891.0 | J99: 990.0 | K99: 1089.0 | L99: 400.6986 | M99: 445.2206 | N99: 489.7428 | O99: 8 | P99: 192 | Q99: 275562.3552
A100: IVECO (IV) | B100: IV3787 | C100: 143.8 | E100: 143.8 | G100: 152.4 | I100: 956.0 | J100: 1062.0 | K100: 1168.0 | L100: 283.9552 | M100: 316.1268 | N100: 347.3920 | O100: 8 | P100: 120 | Q100: 165375.216
A101: IVECO (IV) | B101: IV4087 | C101: 143.8 | E101: 143.8 | G101: 152.4 | I101: 956.0 | J101: 1062.0 | K101: 1168.0 | L101: 283.9558 | M101: 315.0700 | N101: 345.8822 | O101: 8 | P101: 120 | Q101: 165248.4
A102: IVECO (IV) | B102: IV4228 | C102: 105.7 | E102: 105.7 | G102: 63.5 | I102: 218.0 | J102: 243.0 | K102: 267.0 | L102: 203.0708 | M102: 217.0548 | N102: 231.0388 | O102: 36 | P102: 648 | Q102: 298115.5104
A103: IVECO (IV) | B103: IV4821 | C103: 172.0 | E103: 172.0 | G103: 88.9 | I103: 520.0 | J103: 620.0 | K103: 720.0 | L103: 268.1860 | M103: 297.9846 | N103: 327.7830 | O103: 12 | P103: 192 | Q103: 176253.0432
A104: IVECO (IV) | B104: IV4888 | C104: 172.0 | E104: 172.0 | G104: 100.0 | I104: 600.0 | J104: 720.0 | K104: 840.0 | O104: 12 | P104: 192 | Q104: 138240
A105: IVECO (IV) | B105: IV4889 | C105: 172.0 | E105: 172.0 | G105: 279.0 | J105: 4067.0 | L105: 116.0555 | M105: 128.9505 | N105: 141.8456 | O105: 54 | P105: 54 | Q105: 226581.327
A106: IVECO (IV) | B106: IV4890 | C106: 241.3 | E106: 241.3 | G106: 139.7 | I106: 1600.0 | J106: 1980.0 | K106: 2360.0 | L106: 985.5101 | M106: 1094.9167 | N106: 1204.4295 | O106: 40 | P106: 40 | Q106: 122996.668
A107: IVECO (IV) | B107: IV4891 | C107: 241.3 | E107: 241.3 | G107: 139.7 | I107: 1600.0 | J107: 1980.0 | K107: 2360.0 | L107: 879.5062 | M107: 947.3404 | N107: 991.7834 | O107: 40 | P107: 40 | Q107: 117093.616
A108: IVECO (IV) | B108: IV5206 | C108: 172.0 | E108: 172.0 | G108: 152.4 | I108: 915.0 | J108: 1098.0 | K108: 1280.0 | L108: 511.6748 | M108: 568.5276 | N108: 625.3802 | O108: 6 | P108: 120 | Q108: 199983.312
A109: IVECO (IV) | B109: IV5261 | C109: 241.3 | E109: 241.3 | G109: 101.6 | I109: 1160.0 | J109: 1440.0 | K109: 1720.0 | L109: 639.6414 | M109: 688.9754 | N109: 721.2978 | O109: 56 | P109: 56 | Q109: 119222.6224
A110: IVECO (IV) | B110: IV5262 | C110: 241.3 | E110: 241.3 | G110: 101.6 | I110: 1160.0 | J110: 1440.0 | K110: 1720.0 | L110: 786.3671 | M110: 848.4599 | N110: 893.5411 | O110: 56 | P110: 56 | Q110: 128153.7544
A111: IVECO (IV) | B111: IV5325 | C111: 241.0 | E111: 241.0 | G111: 216.0 | J111: 6897.0 | L111: 227.8487 | M111: 253.1652 | N111: 278.4817 | O111: 44 | P111: 44 | Q111: 314607.2688
A112: IVECO (IV) | B112: IV5327 | C112: 172.0 | E112: 172.0 | G112: 120.7 | I112: 725.0 | J112: 870.0 | K112: 1015.0 | L112: 403.3940 | M112: 448.2156 | N112: 493.0372 | O112: 6 | P112: 168 | Q112: 221460.2208
A113: IVECO (IV) | B113: IV5380 | C113: 172.0 | E113: 172.0 | G113: 120.7 | I113: 725.0 | J113: 870.0 | K113: 1015.0 | L113: 405.6018 | M113: 450.0982 | N113: 494.5946 | O113: 6 | P113: 168 | Q113: 221776.4976
A114: IVECO (IV) | B114: IV5382 | C114: 241.3 | E114: 241.3 | G114: 127.0 | I114: 1450.0 | J114: 1800.0 | K114: 2150.0 | L114: 799.5512 | M114: 861.2188 | N114: 901.6216 | O114: 2 | P114: 48 | Q114: 127738.5024
A115: IVECO (IV) | B115: IV5384 | C115: 190.5 | E115: 190.5 | G115: 139.7 | I115: 1080.0 | J115: 1295.0 | K115: 1510.0 | L115: 532.0598 | M115: 591.1776 | N115: 650.2954 | O115: 12 | P115: 60 | Q115: 113170.656
A116: IVECO (IV) | B116: IV5385 | C116: 241.3 | E116: 241.3 | G116: 203.2 | I116: 2320.0 | J116: 2880.0 | K116: 3440.0 | L116: 1279.2806 | M116: 1377.9486 | N116: 1442.5930 | O116: 2 | P116: 32 | Q116: 136254.3552
A117: IVECO (IV) | B117: IV5391 | C117: 190.5 | E117: 190.5 | G117: 127.0 | I117: 980.0 | J117: 1180.0 | K117: 1380.0 | L117: 573.3301 | M117: 637.0334 | N117: 700.7369 | O117: 12 | P117: 72 | Q117: 130826.4048
A118: IVECO (IV) | B118: IV5393 | C118: 241.3 | E118: 241.3 | G118: 127.0 | I118: 1450.0 | J118: 1800.0 | K118: 2150.0 | L118: 946.2769 | M118: 1020.7033 | N118: 1073.8649 | O118: 2 | P118: 48 | Q118: 135393.7584
A119: IVECO (IV) | B119: IV5394 | C119: 172.0 | E119: 172.0 | G119: 152.4 | I119: 915.0 | J119: 1098.0 | K119: 1280.0 | L119: 509.3410 | M119: 565.9344 | N119: 622.5280 | O119: 6 | P119: 120 | Q119: 199672.128
A120: IVECO (IV) | B120: IV5396 | C120: 172.0 | E120: 172.0 | G120: 100.0 | J120: 720.0 | M120: 371.3480 | O120: 12 | P120: 192 | Q120: 209538.816
A121: IVECO (IV) | B121: IV5397 | C121: 190.0 | E121: 190.0 | G121: 152.0 | J121: 2795.0 | L121: 141.6160 | M121: 157.3511 | N121: 173.0861 | O121: 90 | P121: 90 | Q121: 265711.599
A122: IVECO (IV) | B122: IV5398 | C122: 190.0 | E122: 190.0 | G122: 267.0 | J122: 4940.0 | L122: 141.6160 | M122: 157.3511 | N122: 173.0861 | O122: 45 | P122: 1 | Q122: 5097.3511
A123: IVECO (IV) | B123: IV5399 | C123: 241.0 | E123: 241.0 | G123: 190.0 | J123: 6100.0 | L123: 227.8466 | M123: 253.1629 | N123: 278.4791 | O123: 55 | P123: 55 | Q123: 349423.9595
A124: IVECO (IV) | B124: IV5400 | C124: 241.0 | E124: 241.0 | G124: 229.0 | J124: 7300.0 | L124: 227.8466 | M124: 253.1629 | N124: 278.4791 | O124: 44 | P124: 44 | Q124: 332339.1676
A125: IVECO (IV) | B125: IV5444 | C125: 241.3 | E125: 241.3 | G125: 101.6 | I125: 1160.0 | J125: 1440.0 | K125: 1720.0 | L125: 671.3684 | M125: 745.9648 | N125: 820.5612 | O125: 56 | P125: 56 | Q125: 122414.0288
A126: IVECO (IV) | B126: IV5580 | C126: 241.3 | E126: 241.3 | G126: 203.2 | I126: 2320.0 | J126: 2880.0 | K126: 3440.0 | L126: 1385.5079 | M126: 1539.4531 | N126: 1693.3984 | O126: 2 | P126: 32 | Q126: 141422.4992
A127: IVECO (IV) | B127: IV5643 | C127: 143.8 | E127: 143.8 | G127: 109.2 | I127: 460.0 | J127: 529.0 | K127: 597.0 | L127: 256.5478 | M127: 284.6922 | N127: 312.8368 | O127: 16 | P127: 192 | Q127: 156228.9024
A128: IVECO (IV) | B128: IV5644 | C128: 143.8 | E128: 143.8 | G128: 139.7 | I128: 588.0 | J128: 677.0 | K128: 765.0 | L128: 354.3255 | M128: 393.6951 | N128: 433.0645 | O128: 18 | P128: 216 | Q128: 231270.1416
A129: IVECO (IV) | B129: IV5645 | C129: 143.8 | E129: 143.8 | G129: 139.7 | I129: 588.0 | J129: 677.0 | K129: 765.0 | L129: 299.1212 | M129: 336.5112 | N129: 365.5924 | O129: 8 | P129: 144 | Q129: 145945.6128
A130: IVECO (IV) | B130: IV5800 | C130: 215.9 | E130: 215.9 | G130: 236.5 | J130: 2771.0 | L130: 1256.0287 | M130: 1395.5874 | N130: 1535.1461 | O130: 27 | P130: 27 | Q130: 112497.8598
A131: IVECO (IV) | B131: IV6034 | Q131: =P131*(M131+J131) -> 0
A132: JCB (JC) | B132: JC4388 | C132: 190.5 | E132: 190.5 | G132: 101.6 | I132: 760.0 | J132: 950.0 | K132: 1140.0 | L132: 1052.0758 | M132: 1131.6764 | N132: 1244.8440 | O132: 6 | P132: 96 | Q132: 199840.9344
A133: JCB (JC) | B133: JC4979 | C133: 200.0 | D133: 203.0 | E133: 200.0 | F133: 203.0 | G133: 219.5 | H133: 282.0 | I133: 5584.0 | J133: 5994.0 | K133: 6404.0 | L133: 297.7051 | M133: 330.7834 | N133: 363.8617 | O133: 48 | P133: 48 | Q133: 303589.6032
A134: JCB (JC) | B134: JC5313 | C134: 190.5 | E134: 190.5 | G134: 152.4 | I134: 1210.0 | J134: 1430.0 | K134: 1650.0 | L134: 538.0962 | M134: 599.0628 | N134: 660.0292 | O134: 60 | P134: 60 | Q134: 121743.768
A135: JCB (JC) | B135: JC5314 | C135: 190.5 | E135: 190.5 | G135: 152.4 | I135: 1210.0 | J135: 1430.0 | K135: 1650.0 | L135: 590.2270 | M135: 656.4950 | N135: 722.7629 | O135: 60 | P135: 60 | Q135: 125189.7
A136: JCB (JC) | B136: JC5315 | C136: 190.5 | E136: 190.5 | G136: 203.2 | I136: 1620.0 | J136: 1910.0 | K136: 2200.0 | L136: 717.4608 | M136: 798.7496 | N136: 880.0382 | O136: 48 | P136: 48 | Q136: 130019.9808
A137: JCB (JC) | B137: JC5316 | C137: 190.5 | E137: 190.5 | G137: 203.2 | I137: 1620.0 | J137: 1910.0 | K137: 2200.0 | L137: 769.5914 | M137: 856.1817 | N137: 942.7717 | O137: 48 | P137: 48 | Q137: 132776.7216
A138: JOHN DEER (JD) | B138: JD4066 | C138: 241.3 | E138: 241.3 | G138: 165.1 | I138: 3278.0 | J138: 3856.0 | K138: 4434.0 | L138: 794.6000 | M138: 934.8000 | N138: 1075.0000 | O138: 36 | P138: 36 | Q138: 172468.8
A139: JOHN DEER (JD) | B139: JD4068 | C139: 228.6 | E139: 228.6 | G139: 106.2 | I139: 1657.0 | J139: 1950.0 | K139: 2243.0 | L139: 458.6000 | M139: 539.5000 | N139: 620.4000 | O139: 84 | P139: 84 | Q139: 209118
A140: JOHN DEER (JD) | B140: JD4070 | C140: 241.3 | E140: 241.3 | G140: 112.5 | I140: 1955.0 | J140: 2300.0 | K140: 2645.0 | L140: 541.6000 | M140: 637.1000 | N140: 732.7000 | O140: 56 | P140: 56 | Q140: 164477.6
A141: JOHN DEER (JD) | B141: JD4902 | C141: 190.5 | E141: 190.5 | G141: 118.9 | I141: 1288.0 | J141: 1515.0 | K141: 1742.0 | L141: 356.6000 | M141: 419.5000 | N141: 482.4000 | O141: 72 | P141: 72 | Q141: 139284
A142: JOHN DEER (JD) | B142: JD4955 | C142: 241.3 | E142: 241.3 | G142: 165.1 | I142: 2840.0 | J142: 3340.0 | K142: 3840.0 | L142: 794.6000 | M142: 934.8000 | N142: 1075.0000 | O142: 40 | P142: 40 | Q142: 170992
A143: JOHN DEER (JD) | B143: JD5070 | C143: 190.5 | E143: 190.5 | G143: 118.9 | I143: 890.0 | J143: 1050.0 | K143: 1210.0 | L143: 355.6000 | M143: 418.3000 | N143: 481.1000 | O143: 72 | P143: 72 | Q143: 105717.6
A144: JOHN DEER (JD) | B144: JD5072 | C144: 228.6 | E144: 228.6 | G144: 106.2 | I144: 1150.0 | J144: 1350.0 | K144: 1550.0 | O144: 84 | P144: 84 | Q144: 113400
A145: JOHN DEER (JD) | B145: JD5074 | C145: 241.3 | E145: 241.3 | G145: 112.5 | I145: 1360.0 | J145: 1600.0 | K145: 1840.0 | O145: 56 | P145: 56 | Q145: 89600
A146: JOHN DEER (JD) | B146: JD5076 | C146: 241.3 | E146: 241.3 | G146: 165.1 | I146: 1990.0 | J146: 2340.0 | K146: 2690.0 | L146: 792.2986 | M146: 932.9782 | N146: 1072.1994 | O146: 40 | P146: 40 | Q146: 130919.128
A147: JAGUAR LANDROWER (JL) | B147: JL3993 | C147: 172.4 | E147: 126.0 | G147: 145.0 | I147: 645.0 | J147: 770.0 | K147: 895.0 | L147: 661.5312 | M147: 714.4458 | N147: 449.0028 | O147: 8 | P147: 192 | Q147: 285013.5936
A148: JAGUAR LANDROWER (JL) | B148: JL4298 | C148: 118.4 | E148: 118.4 | G148: 91.0 | I148: 250.0 | J148: 300.0 | K148: 350.0 | L148: 165.6948 | M148: 184.0960 | N148: 202.3798 | O148: 22 | P148: 352 | Q148: 170401.792
A149: JAGUAR LANDROWER (JL) | B149: JL4299 | C149: 118.4 | E149: 118.4 | G149: 91.0 | I149: 250.0 | J149: 300.0 | K149: 350.0 | Q149: 0
A150: JAGUAR LANDROWER (JL) | B150: JL4300 | C150: 118.4 | E150: 118.4 | G150: 91.0 | I150: 250.0 | J150: 300.0 | K150: 350.0 | L150: 367.4184 | M150: 390.2552 | N150: 174.8660 | O150: 22 | P150: 352 | Q150: 242969.8304
A151: JAGUAR LANDROWER (JL) | B151: JL4301 | C151: 118.4 | E151: 118.4 | G151: 91.0 | I151: 250.0 | J151: 300.0 | K151: 350.0 | O151: 22 | P151: 352 | Q151: 105600
A152: JAGUAR LANDROWER (JL) | B152: JL4508 | C152: 152.4 | E152: 101.6 | G152: 101.6 | I152: 310.0 | J152: 370.0 | K152: 430.0 | O152: 18 | P152: 288 | Q152: 106560
A153: JAGUAR LANDROWER (JL) | B153: JL4618 | C153: 152.4 | E153: 101.6 | G153: 101.6 | I153: 325.0 | J153: 378.0 | K153: 430.0 | L153: 208.8544 | M153: 232.3100 | N153: 255.0144 | O153: 18 | P153: 288 | Q153: 175769.28
A154: JAGUAR LANDROWER (JL) | B154: JL4665 | C154: 118.4 | E154: 118.4 | G154: 91.0 | I154: 250.0 | J154: 300.0 | K154: 350.0 | L154: 166.3060 | M154: 185.2580 | N154: 203.6028 | O154: 22 | P154: 352 | Q154: 170810.816
A155: JAGUAR LANDROWER (JL) | B155: JL4949 | C155: 183.4 | E155: 143.8 | G155: 152.4 | I155: 840.0 | J155: 980.0 | K155: 1120.0 | L155: 579.8932 | M155: 615.8770 | N155: 276.4384 | O155: 5 | P155: 100 | Q155: 159587.7
A156: JAGUAR LANDROWER (JL) | B156: JL4950 | C156: 152.4 | E156: 101.6 | G156: 101.6 | I156: 310.0 | J156: 370.0 | K156: 430.0 | L156: 457.0634 | M156: 483.0460 | N156: 219.4488 | O156: 18 | P156: 288 | Q156: 245677.248
A157: JAGUAR LANDROWER (JL) | B157: JL5015 | C157: 152.4 | E157: 101.6 | G157: 101.6 | I157: 325.0 | J157: 378.0 | K157: 430.0 | O157: 18 | P157: 288 | Q157: 108864
A158: JAGUAR LANDROWER (JL) | B158: JL5370 | C158: 230.0 | E158: 118.0 | G158: 132.0 | I158: 775.0 | J158: 930.0 | K158: 1085.0 | L158: 393.2630 | M158: 436.9566 | N158: 480.6548 | O158: 5 | P158: 120 | Q158: 164034.792
A159: JAGUAR LANDROWER (JL) | B159: JL5373 | C159: 172.4 | E159: 126.0 | G159: 115.0 | I159: 510.0 | J159: 610.0 | K159: 710.0 | O159: 8 | P159: 224 | Q159: 136640
A160: JAGUAR LANDROWER (JL) | B160: JL5374 | C160: 152.4 | E160: 101.6 | G160: 101.6 | I160: 325.0 | J160: 378.0 | K160: 430.0 | L160: 209.6058 | M160: 233.0600 | N160: 255.7646 | O160: 18 | P160: 288 | Q160: 175985.28
A161: JAGUAR LANDROWER (JL) | B161: JL5627 | C161: 152.4 | E161: 101.6 | G161: 101.6 | I161: 310.0 | J161: 370.0 | K161: 430.0 | L161: 179.3356 | M161: 199.2364 | N161: 219.1374 | O161: 18 | P161: 288 | Q161: 163940.0832
A162: JAGUAR LANDROWER (JL) | B162: JL5628 | C162: 183.4 | E162: 143.8 | G162: 152.4 | I162: 840.0 | J162: 980.0 | K162: 1120.0 | L162: 226.4483 | M162: 251.5878 | N162: 276.7274 | O162: 5 | P162: 100 | Q162: 123158.78
A163: JAGUAR LANDROWER (JL) | B163: JL5631 | C163: 118.4 | E163: 118.4 | G163: 113.0 | I163: 272.0 | J163: 382.0 | K163: 492.0 | L163: 210.2984 | M163: 233.8340 | N163: 256.6096 | O163: 11 | P163: 308 | Q163: 189676.872
A164: JAGUAR LANDROWER (JL) | B164: JL5655 | C164: 118.4 | E164: 118.4 | G164: 113.0 | I164: 315.0 | J164: 370.0 | K164: 435.0 | L164: 183.0432 | M164: 203.3900 | N164: 223.7362 | O164: 11 | P164: 308 | Q164: 176604.12
A165: JAGUAR LANDROWER (JL) | B165: JL5680 | C165: 110.0 | E165: 110.0 | G165: 131.0 | I165: 325.0 | J165: 380.0 | K165: 435.0 | Q165: 0
A166: JAGUAR LANDROWER (JL) | B166: JL5681 | C166: 152.4 | E166: 101.6 | G166: 101.6 | I166: 325.0 | J166: 378.0 | K166: 430.0 | O166: 18 | P166: 288 | Q166: 108864
A167: JAGUAR LANDROWER (JL) | B167: JL5682 | C167: 143.8 | E167: 143.8 | G167: 80.0 | I167: 325.0 | J167: 388.0 | K167: 450.0 | L167: 187.9126 | M167: 208.7654 | N167: 229.6180 | O167: 18 | P167: 288 | Q167: 171868.4352
A168: JAGUAR LANDROWER (JL) | B168: JL5683 | C168: 230.0 | E168: 118.0 | G168: 176.0 | I168: 1030.0 | J168: 1238.0 | K168: 1445.0 | O168: 5 | P168: 100 | Q168: 123800
A169: JAGUAR LANDROWER (JL) | B169: JL5684 | C169: 143.8 | E169: 143.8 | G169: 80.0 | I169: 340.0 | J169: 397.0 | K169: 450.0 | L169: 189.4984 | M169: 210.1132 | N169: 231.5210 | O169: 12 | P169: 240 | Q169: 145707.168
A170: JAGUAR LANDROWER (JL) | B170: JL5685 | C170: 143.8 | E170: 143.8 | G170: 80.0 | I170: 340.0 | J170: 397.0 | K170: 450.0 | L170: 187.9126 | M170: 209.3204 | N170: 229.9352 | O170: 12 | P170: 240 | Q170: 145516.896
A171: JAGUAR LANDROWER (JL) | B171: JL5732 | C171: 143.8 | E171: 143.8 | G171: 80.0 | I171: 325.0 | J171: 388.0 | K171: 450.0 | L171: 191.1634 | M171: 212.4126 | N171: 233.6618 | O171: 12 | P171: 240 | Q171: 144099.024
A172: JAGUAR LANDROWER (JL) | B172: JL5738 | C172: 143.8 | E172: 143.8 | G172: 120.0 | I172: 510.0 | J172: 598.0 | K172: 680.0 | O172: 6 | P172: 168 | Q172: 100464
A173: JAGUAR LANDROWER (JL) | B173: JL5853 | C173: 197.0 | E173: 102.2 | G173: 80.0 | I173: 375.0 | J173: 448.0 | K173: 515.0 | Q173: 0
A174: JAGUAR LANDROWER (JL) | B174: JL5912 | C174: 118.4 | E174: 118.4 | G174: 113.0 | I174: 272.0 | J174: 382.0 | K174: 492.0 | O174: 11 | P174: 308 | Q174: 117656
A175: JAGUAR LANDROWER (JL) | B175: JL5939 | C175: 143.8 | E175: 143.8 | G175: 120.0 | I175: 510.0 | J175: 595.0 | K175: 680.0 | O175: 6 | P175: 168 | Q175: 99960
A176: LIEBHERR (LB) | B176: LB5139 | C176: 305.0 | E176: 305.0 | G176: 203.0 | Q176: 0
A177: LIEBHERR (LB) | B177: LB5140 | C177: 305.0 | E177: 305.0 | G177: 203.0 | J177: 9639.0 | L177: 608.6972 | M177: 676.6440 | N177: 741.7613 | O177: 24 | P177: 24 | Q177: 247575.456
A178: LIEBHERR (LB) | B178: LB5755 | C178: 305.0 | E178: 305.0 | G178: 127.0 | J178: 9640.0 | Q178: 0
A179: MASERATI (MA) | B179: MA5996 | C179: 120.0 | D179: 130.0 | E179: 100.4 | F179: 110.4 | G179: 145.0 | H179: 163.0 | I179: 1249.0 | J179: 1388.0 | K179: 1527.0 | L179: 207.6454 | M179: 231.2020 | N179: 253.8858 | O179: 5 | P179: 225 | Q179: 364320.45
A180: MASERATI (MA) | B180: MA5998 | C180: 187.0 | D180: 190.0 | E180: 98.0 | F180: 101.0 | G180: 115.0 | H180: 119.0 | O180: 4 | P180: 224 | Q180: 0
A181: MERCEDES BENZ (MB) | B181: MB4255 | C181: 157.5 | E181: 157.5 | G181: 80.0 | I181: 440.0 | J181: 495.0 | K181: 550.0 | L181: 272.4668 | M181: 302.7410 | N181: 333.0150 | O181: 12 | P181: 240 | Q181: 191457.84
A182: MERCEDES BENZ (MB) | B182: MB5047 | C182: 157.5 | E182: 157.5 | G182: 80.0 | I182: 440.0 | J182: 495.0 | K182: 550.0 | L182: 263.5654 | M182: 292.8504 | N182: 322.1348 | O182: 12 | P182: 240 | Q182: 189084.096
A183: MERCEDES BENZ (MB) | B183: MB5048 | C183: 143.8 | E183: 143.8 | G183: 127.0 | I183: 555.0 | J183: 628.0 | K183: 700.0 | L183: 270.7416 | M183: 300.8240 | N183: 330.9064 | O183: 6 | P183: 144 | Q183: 133750.656
A184: MERCEDES BENZ (MB) | B184: MB5049 | C184: 157.5 | E184: 157.5 | G184: 80.0 | I184: 440.0 | J184: 495.0 | K184: 550.0 | L184: 225.8996 | M184: 250.9996 | N184: 276.0996 | O184: 12 | P184: 240 | Q184: 179039.904
A185: MERCEDES BENZ (MB) | B185: MB5248 | C185: 230.0 | E185: 96.0 | G185: 95.0 | I185: 585.0 | J185: 663.0 | K185: 740.0 | L185: 237.6486 | M185: 264.0540 | N185: 290.4594 | O185: 12 | P185: 192 | Q185: 177994.368
A186: MERCEDES BENZ (MB) | B186: MB5266 | C186: 157.5 | E186: 157.5 | G186: 80.0 | I186: 440.0 | J186: 495.0 | K186: 550.0 | L186: 263.3080 | M186: 292.5644 | N186: 321.8208 | O186: 12 | P186: 240 | Q186: 189015.456
A187: MERCEDES BENZ (MB) | B187: MB5488 | C187: 230.0 | E187: 96.0 | G187: 152.4 | I187: 935.0 | J187: 1060.0 | K187: 1185.0 | O187: 6 | P187: 120 | Q187: 127200
A188: MERCEDES BENZ (MB) | B188: MB5519 | C188: 143.8 | E188: 143.8 | G188: 152.4 | I188: 670.0 | J188: 758.0 | K188: 845.0 | L188: 358.5618 | M188: 398.4020 | N188: 438.2422 | O188: 6 | P188: 120 | Q188: 138768.24
A189: MERCEDES BENZ (MB) | B189: MB5524 | C189: 157.5 | E189: 157.5 | G189: 80.0 | I189: 440.0 | J189: 495.0 | K189: 550.0 | L189: 270.4140 | M189: 300.4580 | N189: 330.5040 | O189: 12 | P189: 240 | Q189: 190909.92
A190: MERCEDES BENZ (MB) | B190: MB5707 | C190: 132.1 | E190: 132.1 | G190: 117.0 | I190: 418.0 | J190: 485.0 | K190: 552.0 | L190: 278.1064 | M190: 309.0070 | N190: 339.9078 | O190: 11 | P190: 231 | Q190: 183415.617
A191: MERCEDES BENZ (MB) | B191: MB5789 | C191: 150.0 | D191: 169.6 | E191: 150.0 | F191: 169.6 | G191: 91.0 | H191: 106.0 | J191: 1770.0 | L191: 213.1000 | M191: 236.7777 | N191: 260.4555 | O191: 4 | P191: 112 | Q191: 224759.1024
A192: MERCEDES BENZ (MB) | B192: MB5790 | C192: 157.5 | E192: 157.5 | G192: 100.0 | I192: 545.0 | J192: 620.0 | K192: 695.0 | L192: 329.3568 | M192: 365.9520 | N192: 402.5472 | O192: 12 | P192: 192 | Q192: 189302.784
A193: MERCEDES BENZ (MB) | B193: MB5792 | C193: 228.6 | E193: 137.2 | G193: 127.0 | I193: 985.0 | J193: 1118.0 | K193: 1250.0 | L193: 401.3874 | M193: 445.9860 | N193: 490.5846 | O193: 5 | P193: 210 | Q193: 328437.06
A194: MITSUBISHI FUSO (MF) | B194: MF2872 | C194: 190.5 | E194: 190.5 | G194: 101.6 | I194: 820.0 | J194: 955.0 | K194: 1090.0 | L194: 371.1036 | M194: 464.2304 | N194: 556.6554 | O194: 6 | P194: 96 | Q194: 136246.1184
A195: MITSUBISHI FUSO (MF) | B195: MF4208 | C195: 241.0 | E195: 241.0 | G195: 203.0 | I195: 5500.0 | J195: 6000.0 | K195: 6500.0 | L195: 192.3000 | M195: 213.5000 | N195: 234.7000 | O195: 44 | P195: 44 | Q195: =P195*(M195+J195) -> 273394
A196: MAN (MN) | B196: MN5440 | C196: 142.2 | E196: 142.2 | G196: 205.0 | J196: 2310.0 | L196: 33.3793 | M196: 37.0720 | N196: 40.7887 | O196: 112 | P196: 112 | Q196: 262872.064
A197: NISSAN (NI) | B197: NI3800 | C197: 118.4 | E197: 118.4 | G197: 145.3 | I197: 400.0 | J197: 480.0 | K197: 560.0 | L197: 277.1182 | M197: 307.9094 | N197: 338.7002 | O197: 11 | P197: 220 | Q197: 173340.068
A198: NISSAN (NI) | B198: NI4351 | C198: 118.4 | E198: 118.4 | G198: 145.3 | I198: 400.0 | J198: 480.0 | K198: 560.0 | L198: 277.1182 | M198: 307.9094 | N198: 338.7002 | O198: 11 | P198: 220 | Q198: 173340.068
A199: NISSAN (NI) | B199: NI4643 | C199: 118.4 | E199: 118.4 | G199: 145.3 | I199: 414.0 | J199: 451.0 | K199: 488.0 | L199: 206.2134 | M199: 229.1259 | N199: 252.0385 | O199: 11 | P199: 264 | Q199: 179553.2376
A200: NISSAN (NI) | B200: NI4644 | C200: 118.4 | E200: 118.4 | G200: 145.3 | I200: 414.0 | J200: 451.0 | K200: 488.0 | L200: 206.2134 | M200: 229.1259 | N200: 252.0385 | O200: 11 | P200: 264 | Q200: 179553.2376
... 176 more rows

Sheet Sheet1 (hidden)
D4: CT | F4: Parts per Box | H4: Layers Per Box | L4: No. of Ops.
D5: 2.5 | F5: 12 | H5: 2 | J5: =N14/D5 -> 3.08333 | L5: =IF(J5>=3,4,IF(J5>=2,3,IF(J5>=1,2,IF(J5>=0,1)))) -> 4
D7: 1 | F7: 2 | H7: 3 | J7: 4
J8: N14/D5
M9: Take & Open Box | N9: 9
M10: Take Part & Quality Check | N10: 3
M11: Scan Part & Put in Box | N11: 3
M12: Put separator on box | N12: 2.5
M13: Print label put on Box close box push away | N13: 9
N14: =N9/F5+N10+N11+(N12*(H5-1))/F5+N13/F5 -> 7.7
J15: N9/F5+N10+N11+(N12*(H5-1))/F5+N13/F5
H19: https://www.youtube.com/watch?v=T7cEe71b4J8
H21: https://www.youtube.com/watch?v=zAI53xR1emM

Sheet exit

Sheet times (hidden)
A1: HDD | P1: 2014-12-01 | AE1: Mart 2016 | AF1: ima skrieni kelii od pocetokot
AE3: HDD | AF3: LS | AK3: HDD-FOL | AM3: SS,MS | AP3: CSF | AW3: SS,MS-FOL
A4: FOL | N4: average | P4: FOL | AB4: average | AE4: FOL | AF4: SW4991 LS | AG4: VP4451 LS | AH4: VP4451 LS | AI4: Average | AK4: Average from 2014-16 | AM4: FOL | AN4: BM5106 SS | AO4: BM6007 SS | AP4: IV4793 CSF | AQ4: RE5143 CSF | AR4: RE5144 CSF | AS4: RE6126 L3 | AT4: VW5035 L3 | AU4: RE5505 SS | AV4: RE6256 SS | AW4: Average
A5: Open Pallet | B5: 44.00 | C5: 25.00 | D5: 60.00 | E5: 60.20 | F5: 43.50 | G5: 38.50 | H5: 62.00 | I5: 45.50 | J5: 25.00 | K5: 28.00 | L5: 33.00 | N5: =AVERAGE(B5:L5) -> 42.25 | P5: Open Pallet | Q5: 44.00 | R5: 60.00 | S5: 60.20 | T5: 43.50 | U5: 38.50 | V5: 62.00 | W5: 45.50 | X5: 25.00 | Y5: 28.00 | Z5: 33.00 | AB5: =AVERAGE(Q5:AA5) -> 43.97 | AE5: Open pallet and remove protective lid | AF5: 53.2 | AG5: 52.7 | AH5: 69.8 | AI5: =AVERAGE(AF5:AH5) -> 58.6 | AK5: =AVERAGE(AB5,AI5) -> 51.27 | AL5: pallet | AM5: Open pallet and remove protective lid | AN5: 33.1 | AO5: 37.6 | AP5: 59.8 | AQ5: 82.7 | AR5: 94.8 | AS5: 43.4 | AT5: 105.2 | AU5: 48 | AV5: 37.2 | AW5: =AVERAGE(AN5:AV5) -> 60.2 | AX5: pallet
A6: Scan in SAP | B6: 6.00 | C6: 7.00 | D6: 7.00 | E6: 7.00 | F6: 8.00 | G6: 10.00 | H6: 6.00 | I6: 7.00 | J6: 12.00 | K6: 12.00 | L6: 8.00 | N6: 8.18 | P6: Scan in SAP | Q6: 7.00 | R6: 7.00 | S6: 7.00 | T6: 8.00 | U6: 10.00 | V6: 6.00 | W6: 7.00 | X6: 12.00 | Y6: 12.00 | Z6: 8.00 | AB6: =AVERAGE(Q6:AA6) -> 8.40 | AD6: ? | AE6: Scan pallet number in SAP | AF6: 23.6 | AG6: 20.3 | AH6: 35.7 | AI6: =AVERAGE(AF6:AH6) -> 26.5 | AK6: =AVERAGE(AB6,AI6) -> 17.47 | AL6: pallet | AM6: Scan pallet number in SAP | AN6: 23.6 | AO6: 23.6 | AP6: 27.2 | AQ6: 28.8 | AR6: 26.7 | AS6: 16.8 | AT6: 11.7 | AU6: 29.4 | AV6: 25 | AW6: =AVERAGE(AN6:AV6) -> 23.6 | AX6: pallet
A7: Push pallet on roller | B7: 25.00 | C7: 19.00 | D7: 35.00 | E7: 31.30 | F7: 25.00 | G7: 27.00 | H7: 32.00 | I7: 34.25 | J7: 26.30 | K7: 22.00 | L7: 26.45 | N7: 27.57 | P7: Push pallet on roller | Q7: 25.00 | R7: 35.00 | S7: 31.30 | T7: 25.00 | U7: 27.00 | V7: 32.00 | W7: 34.25 | X7: 26.30 | Y7: 22.00 | Z7: 26.45 | AB7: 28.43 | AD7: ? | AE7: Push pallet on lift | AF7: 11.6 | AG7: 8.2 | AH7: 9.8 | AI7: 9.9 | AK7: 19.15 | AL7: pallet | AM7: Push pallet on lift | AN7: 6.4 | AO7: 13.8 | AP7: 3.5 | AQ7: 3.6 | AR7: 3.8 | AS7: 3.9 | AT7: 3.6 | AU7: 7.7 | AV7: 5.8 | AW7: 5.8 | AX7: pallet
A8: Remove Lid | B8: 7.70 | C8: 7.30 | D8: 7.70 | E8: 5.10 | F8: 7.90 | G8: 7.90 | H8: 6.60 | I8: 6.50 | J8: 6.80 | K8: 6.80 | L8: 5.36 | N8: 6.88 | P8: Remove Lid | Q8: 7.70 | R8: 7.30 | S8: 7.70 | T8: 7.90 | U8: 7.90 | V8: 6.60 | W8: 6.50 | X8: 6.80 | Y8: 6.80 | Z8: 5.36 | AB8: 7.06 | AE8: Remove Layer | AF8: 6 | AG8: 6 | AH8: 7.63 | AI8: 6.5 | AK8: 6.80 | AL8: layer pallet | AM8: Open box | AN8: 4.1 | AO8: 8.7 | AP8: 4.3 | AQ8: 5.5 | AR8: 6.3 | AS8: 2.7 | AT8: 4.2 | AU8: 4 | AV8: 2.2 | AW8: 4.7 | AX8: box
A9: Take and place part | B9: 4.80 | C9: 5.40 | D9: 6.20 | E9: 6.80 | F9: 3.10 | G9: 3.06 | H9: 2.80 | I9: 3.60 | J9: 4.20 | K9: 3.80 | L9: 4.04 | N9: 4.35 | P9: Take and place part | Q9: 4.80 | R9: 5.40 | S9: 6.20 | T9: 6.80 | U9: 3.10 | V9: 3.06 | W9: 3.60 | X9: 4.20 | Y9: 3.80 | Z9: 4.04 | AB9: 4.50 | AE9: Take and place part | AF9: 2.59 | AG9: 3.52 | AH9: 3.8 | AI9: 3.3 | AK9: 3.90 | AL9: part | AM9: Take and place part | AN9: 4.8 | AO9: 5.7 | AP9: 3.2 | AQ9: 2.8 | AR9: 3.5 | AS9: 1.6 | AT9: 2.7 | AU9: 2.7 | AV9: 2 | AW9: 3.2 | AX9: part
A10: Remove pallet from roller | B10: 13.70 | C10: 25.00 | D10: 28.00 | E10: 27.30 | F10: 15.70 | G10: 12.00 | H10: 37.50 | I10: 37.00 | J10: 9.25 | K10: 15.80 | L10: 15.31 | N10: 21.51 | P10: Remove pallet from roller | Q10: 13.70 | R10: 25.00 | S10: 28.00 | T10: 27.30 | U10: 15.70 | V10: 12.00 | W10: 37.50 | X10: 37.00 | Y10: 15.80 | Z10: 15.31 | AB10: 22.73 | AD10: ? | AE10: Remove pallet from roller | AF10: ='Sheet1 (2)'!$L$21+'Sheet1 (2)'!$L$24+'Sheet1 (2)'!$L$27 -> 7 | AG10: ='Sheet1 (2)'!$M$21+'Sheet1 (2)'!$M$24+'Sheet1 (2)'!$M$27 -> 4.55 | AH10: ='Sheet1 (2)'!$N$21+'Sheet1 (2)'!$N$24+'Sheet1 (2)'!$N$27 -> 6.7 | AI10: 6.1 | AK10: 14.41 | AL10: pallet | AM10: Close box and place in cage | AN10: 5.6 | AO10: 9.4 | AP10: 5 | AQ10: 5.2 | AR10: 4.2 | AS10: 2.5 | AT10: 2.6 | AU10: 4.6 | AV10: 3.7 | AW10: 4.8 | AX10: box
AM11: Set cage in order | AN11: 29.9 | AS11: 21.4 | AT11: 55.5 | AU11: 13.9 | AV11: 19.3 | AW11: 28.0 | AX11: 4pallets
AM12: Remove pallet from roller | AN12: 9.4 | AO12: 9.8 | AP12: 7.2 | AQ12: 5.6 | AR12: 4.4 | AS12: 4.1 | AT12: 4.1 | AU12: 4.2 | AV12: 6 | AW12: 6.1 | AX12: pallet
AE14: HDD - new SOP | AJ14: HDD-EOL
A15: EOL | N15: average | P15: EOL | AB15: average | AE15: EOL | AF15: DT5547 | AG15: DT5548 | AH15: DT5785 | AI15: DT5785 | AJ15: Average
A16: Zemi del + QA proverka | B16: 2.44 | C16: 2.97 | D16: 4.02 | E16: 4.10 | F16: 2.15 | G16: 1.94 | H16: 2.90 | I16: 2.95 | J16: 1.73 | K16: 2.72 | L16: 5.30 | M16: 3.30 | N16: =AVERAGE(B16:M16) -> 3.04 | P16: Zemi del + QA proverka | Q16: 2.44 | R16: 2.97 | S16: 4.02 | T16: 4.10 | U16: 2.15 | V16: 1.94 | W16: 2.90 | X16: 2.95 | Y16: 2.72 | Z16: 5.30 | AA16: 3.30 | AB16: =AVERAGE(Q16:AA16) -> 3.16 | AE16: Zemi del + QA proverka | AF16: 3.1 | AG16: 4 | AH16: 2.3 | AI16: 2.2 | AJ16: =AVERAGE(AF16:AI16) -> 2.90 | AK16: part
A17: Sken + podavanje | B17: 2.56 | C17: 1.86 | D17: 2.31 | E17: 1.88 | F17: 3.00 | G17: 3.51 | H17: 3.05 | I17: 3.18 | J17: 2.44 | K17: 2.68 | L17: 2.42 | M17: 2.00 | N17: =AVERAGE(B17:M17) -> 2.57 | P17: Sken + podavanje | Q17: 2.56 | R17: 2.31 | S17: 1.88 | T17: 3.00 | U17: 3.51 | V17: 3.05 | W17: 3.18 | X17: 2.44 | Y17: 2.68 | Z17: 2.42 | AA17: 2.00 | AB17: =AVERAGE(Q17:AA17) -> 2.64 | AE17: Sken + stavi na paleta | AF17: 5.6 | AG17: 5.5 | AH17: 5.7 | AI17: 5.1 | AJ17: =AVERAGE(AF17:AI17) -> 5.48 | AK17: part
A18: stavi del na paleta | B18: 2.62 | C18: 2.06 | D18: 2.52 | E18: 2.32 | F18: 2.46 | G18: 3.04 | H18: 3.70 | I18: 3.77 | J18: 3.12 | K18: 2.77 | L18: 2.22 | M18: 2.51 | N18: =AVERAGE(B18:M18) -> 2.76 | P18: stavi del na paleta | Q18: 2.62 | R18: 2.52 | S18: 2.32 | T18: 2.46 | U18: 3.04 | V18: 3.70 | W18: 3.77 | X18: 3.12 | Y18: 2.77 | Z18: 2.22 | AA18: 2.51 | AB18: 2.82 | AE18: stavi separator/spusti visina | AF18: 10 | AG18: 10 | AH18: 7.9 | AI18: 7.9 | AJ18: 8.95 | AK18: layers pallet
A19: stavi separator/kapak | B19: 0.93 | C19: 0.88 | D19: 1.00 | E19: 0.97 | F19: 0.59 | G19: 1.14 | H19: 1.05 | I19: 1.71 | J19: 0.89 | K19: 0.50 | L19: 6.41 | M19: 6.14 | N19: =AVERAGE(B19:M19) -> 1.85 | P19: stavi separator/kapak | Q19: 0.93 | R19: 0.88 | S19: 1.00 | T19: 0.97 | U19: 0.59 | V19: 1.14 | W19: 1.05 | X19: 1.71 | Y19: 0.89 | Z19: 6.41 | AA19: 6.14 | AB19: 1.97 | AE19: Box label + zatvori paleta | AF19: 29 | AG19: 29 | AH19: 22.2 | AI19: 22.2 | AJ19: 25.60 | AK19: pallet
A20: Pakuvanje paleta | B20: 450.0 | C20: 442.5 | D20: 405.0 | E20: 367.5 | F20: 400.0 | G20: 400.0 | H20: 397.5 | I20: 420.0 | J20: 400.0 | K20: 390.0 | L20: 474.0 | M20: 438.0 | N20: =AVERAGE(B20:M20) -> 415.38 | P20: Pakuvanje paleta | Q20: 450.0 | R20: 442.5 | S20: 405.0 | T20: 400.0 | U20: 400.0 | V20: 397.5 | W20: 420.0 | X20: 400.0 | Y20: 390.0 | Z20: 474.0 | AA20: 438.0 | AB20: 419.73 | AE20: Odnesi paleta za strap / vrati prazna paleta | AF20: 111.7 | AG20: 111.7 | AH20: 111 | AI20: 109 | AJ20: 110.85 | AK20: pallet

Sheet Sheet1 (2) (hidden)
B1: Vreminjata se vo sekundi.
B2: Za EOL 3 vremeto se sporeduva so CT pomnozeno so broj na delovi vo paleta. (ako se resite da stavate za water spider)
E4: CSF | L4: LS
B5: FOL | C5: BM5106 SS | D5: BM6007 SS | E5: IV4793 CSF | F5: RE5143 CSF | G5: RE5144 CSF | H5: RE6126 L3 | I5: VW5035 L3 | J5: RE5505 SS | K5: RE6256 SS | L5: SW4991 LS | M5: VP4451 LS | N5: VP4451 LS | O5: Average
B6: Open pallet and remove protective lid | C6: 33.1 | D6: 37.6 | E6: 59.8 | F6: 82.7 | G6: 94.8 | H6: 43.4 | I6: 105.2 | J6: 48 | K6: 37.2 | L6: 53.2 | M6: 52.7 | N6: 69.8 | O6: =AVERAGE(C6:N8) -> 59.8
B9: Push pallet on lift | C9: 6.4 | D9: 13.8 | E9: 3.5 | F9: 3.6 | G9: 3.8 | H9: 3.9 | I9: 3.6 | J9: 7.7 | K9: 5.8 | L9: 11.6 | M9: 8.2 | N9: 9.8 | O9: =AVERAGE(C9:N11) -> 6.8
B12: Scan pallet number in SAP | C12: 23.6 | D12: 23.6 | E12: 27.2 | F12: 28.8 | G12: 26.7 | H12: 16.8 | I12: 11.7 | J12: 29.4 | K12: 25 | L12: 23.6 | M12: 20.3 | N12: 35.7 | O12: =AVERAGE(C12:N14) -> 24.4
B15: Open box - Remove Layer | C15: 4.1 | D15: 8.7 | E15: 4.3 | F15: 5.5 | G15: 6.3 | H15: 2.7 | I15: 4.2 | J15: 4 | K15: 2.2 | L15: 6 | M15: 6 | N15: 7.63 | O15: =AVERAGE(C15:N17) -> 5.1
B18: Take and place part | C18: 4.8 | D18: 5.7 | E18: 3.2 | F18: 2.8 | G18: 3.5 | H18: 1.6 | I18: 2.7 | J18: 2.7 | K18: 2 | L18: 2.59 | M18: 3.52 | N18: 3.8 | O18: =AVERAGE(C18:N20) -> 3.2
B21: Close box and place in cage | C21: 5.6 | D21: 9.4 | E21: 5 | F21: 5.2 | G21: 4.2 | H21: 2.5 | I21: 2.6 | J21: 4.6 | K21: 3.7 | O21: =AVERAGE(C21:N23) -> 4.8
B24: Set cage in order | C24: 29.9 | H24: 21.4 | I24: 55.5 | J24: 13.9 | K24: 19.3 | O24: =AVERAGE(C24:N26) -> 28.0
B27: Remove pallet from roller | C27: 9.4 | D27: 9.8 | E27: 7.2 | F27: 5.6 | G27: 4.4 | H27: 4.1 | I27: 4.1 | J27: 4.2 | K27: 6 | L27: 7 | M27: 4.55 | N27: 6.7 | O27: =AVERAGE(C27:N29) -> 6.1
A33: HDD | B33: EOL-2 | C33: DT5547 | D33: DT5548 | E33: DT5785 | F33: DT5785 | G33: Average | H33: samo paleta, bez kutii
A34: packing | B34: Zemi del + QA proverka | C34: 3.1 | D34: 4 | E34: 2.3 | F34: 2.2 | G34: =AVERAGE(C34:F36) -> 2.9
B37: Sken + stavi na paleta | C37: 5.6 | D37: 5.5 | E37: 5.7 | F37: 5.1 | G37: =AVERAGE(C37:F39) -> 5.475
B40: stavi separator/spusti visina | C40: 10 | D40: 10 | E40: 7.9 | F40: 7.9 | G40: =AVERAGE(C40:F42) -> 8.95
B43: Box label + zatvori paleta | C43: 29 | D43: 29 | E43: 22.2 | F43: 22.2 | G43: =AVERAGE(C43:F45) -> 25.6
B46: Odnesi paleta za strap / vrati prazna paleta | C46: 111.7 | D46: 111.7 | E46: 111 | F46: 109 | G46: =AVERAGE(C46:F48) -> 110.85
B49: Generalno pravilo za boxless pallet wrapping L - 1,2 ako e intermedia 1 operator ako e finish 2 operatora
A53: SS/MS
A54: waterspider | B54: EOL-3/4 w-spider | C54: PU4233 | D54: RE6368 | E54: VW6006 | F54: Average | G54: so kutii
B55: Postavi prazna paleta | C55: 54.1 | D55: 54.2 | E55: 74.3 | F55: =AVERAGE(C55:E57) -> 60.9
B58: Zemi kutija I stavi na paleta | C58: 7.4 | D58: 5.2 | E58: 5.2 | F58: =AVERAGE(C58:E60) -> 5.9
B61: Skeniraj kutii vo SAP | C61: 38.6 | D61: 145 | E61: 91.4 | F61: =AVERAGE(C61:E63) -> 91.7
B64: Spakuvaj paleta | C64: 237.8 | D64: 140 | E64: 218.6 | F64: =AVERAGE(C64:E66) -> 198.8
B67: Stavi paleta na roler | C67: 78 | D67: 76.7 | E67: 50 | F67: =AVERAGE(C67:E69) -> 68.2
B70: Ovie vreminja se bez operacijata za dopolnuvanje na prazni kutii I preporaka e da ima 2 operatora vo sekoe vreme na EOL-3/4
